fUST/lending_fUST_20260618
["ID","MTS","AMOUNT","RATE_DAILY","PERIOD"]
[425398920,1781748639000,-515.26618415,0.00016438,2]
[425398919,1781748639000,-504.59216441,0.00016438,2]
[425398917,1781748639000,-502.66468466,0.00016438,2]
[425398924,1781748639000,-500.0,0.00016438,2]
[425398921,1781748639000,-505.2869091,0.00016438,2]
[425398918,1781748639000,-507.40551873,0.00016438,2]
[425398923,1781748639000,-503.73795101,0.00016438,2]
[425398936,1781748639000,-526.5877667,0.00016438,2]
[425398922,1781748639000,-506.83709941,0.00016438,2]
[425398935,1781748639000,-518.49056874,0.00016438,2]
[425398929,1781748639000,-519.51335214,0.00016438,2]
[425398932,1781748639000,-509.03292778,0.00016438,2]
[425398933,1781748639000,-508.80319628,0.00016438,2]
[425398930,1781748639000,-511.0235616,0.00016438,2]
[425398934,1781748639000,-501.50990254,0.00016438,2]
[425398931,1781748639000,-524.43719128,0.00016438,2]
[425398926,1781748639000,-501.52018212,0.00016438,2]
[425398927,1781748639000,-501.78151284,0.00016438,2]
[425398925,1781748639000,-520.446391,0.00016438,2]
[425398928,1781748639000,-506.1225334,0.00016438,2]
[425399018,1781748640000,-500.0,0.00017497,2]
[425399012,1781748640000,-500.0,0.00017497,2]
[425399011,1781748640000,-500.0,0.00017497,2]
[425399008,1781748640000,-500.0,0.00017497,2]
[425399009,1781748640000,-500.0,0.00017497,2]
[425399001,1781748640000,-372.403816,0.00017299,2]
[425399007,1781748640000,-500.0,0.00017497,2]
[425399006,1781748640000,-500.0,0.00017497,2]
[425399003,1781748640000,-500.0,0.00017497,2]
[425399005,1781748640000,-500.0,0.00017497,2]
[425399002,1781748640000,-514.19338928,0.00017497,2]
[425399016,1781748640000,-500.0,0.00017497,2]
[425399010,1781748640000,-500.0,0.00017497,2]
[425399013,1781748640000,-500.0,0.00017497,2]
[425399027,1781748640000,-500.0,0.00017497,2]
[425399017,1781748640000,-500.0,0.00017497,2]
[425399015,1781748640000,-500.0,0.00017497,2]
[425399019,1781748640000,-500.0,0.00017497,2]
[425399022,1781748640000,-500.0,0.00017497,2]
[425399020,1781748640000,-500.0,0.00017497,2]
[425399021,1781748640000,-500.0,0.00017497,2]
[425399023,1781748640000,-500.0,0.00017497,2]
[425399024,1781748640000,-500.0,0.00017497,2]
[425399025,1781748640000,-382.71987003,0.00017497,2]
[425399030,1781748640000,-500.0,0.00017497,2]
[425399028,1781748640000,-500.0,0.00017497,2]
[425399026,1781748640000,-500.0,0.00017497,2]
[425399004,1781748640000,-500.0,0.00017497,2]
[425399014,1781748640000,-500.0,0.00017497,2]
[425399000,1781748640000,-500.0,0.0001726,2]
[425398970,1781748640000,-500.0,0.00016438,2]
[425398998,1781748640000,-300.0,0.0001726,2]
[425398969,1781748640000,-505.96581446,0.00016438,2]
[425399029,1781748640000,-500.0,0.00017497,2]
[425398973,1781748640000,-300.0,0.00016438,2]
[425398971,1781748640000,-503.90011587,0.00016438,2]
[425398972,1781748640000,-500.0,0.00016438,2]
[425398974,1781748640000,-503.05013451,0.00016438,2]
[425398978,1781748640000,-503.86552805,0.00016438,2]
[425398979,1781748640000,-504.37154157,0.00016438,2]
[425398975,1781748640000,-507.18535026,0.00016438,2]
[425398976,1781748640000,-505.15645617,0.00016438,2]
[425398977,1781748640000,-504.7281599,0.00016438,2]
[425398980,1781748640000,-561.65281798,0.00016438,2]
[425398982,1781748640000,-502.9795696,0.00016438,2]
[425398981,1781748640000,-507.10043837,0.00016438,2]
[425398984,1781748640000,-508.66742576,0.00016438,2]
[425398983,1781748640000,-500.0,0.00016438,2]
[425398985,1781748640000,-503.8783073,0.00016438,2]
[425398986,1781748640000,-500.0,0.00016438,2]
[425398989,1781748640000,-372.403816,0.00016675,2]
[425398991,1781748640000,-500.0,0.00016712,2]
[425398990,1781748640000,-216.88907667,0.00016712,2]
[425398987,1781748640000,-508.96781678,0.00016438,2]
[425398988,1781748640000,-506.24638174,0.00016438,2]
[425398992,1781748640000,-500.0,0.00016712,2]
[425398994,1781748640000,-500.0,0.00016986,2]
[425398993,1781748640000,-500.0,0.00016712,2]
[425398995,1781748640000,-500.0,0.00016986,2]
[425398997,1781748640000,-500.0,0.0001726,2]
[425398996,1781748640000,-500.0,0.00016986,2]
[425398999,1781748640000,-336.96013967,0.0001726,2]
[425399031,1781748640000,-500.0,0.00017497,2]
[425399040,1781748640000,-521.08091538,0.00017498,2]
[425399032,1781748640000,-500.0,0.00017497,2]
[425399069,1781748640000,-525.31223968,0.00017498,2]
[425399068,1781748640000,-503.43057789,0.00017498,2]
[425399066,1781748640000,-500.0,0.00017498,2]
[425399071,1781748640000,-514.4459779,0.00017498,2]
[425399073,1781748640000,-504.94277204,0.00017498,2]
[425399076,1781748640000,-526.66038199,0.00017498,2]
[425399074,1781748640000,-508.09124366,0.00017498,2]
[425399072,1781748640000,-505.88532102,0.00017498,2]
[425399075,1781748640000,-500.0,0.00017498,2]
[425399077,1781748640000,-370.03001562,0.00017498,2]
[425399082,1781748640000,-508.26196745,0.00017498,2]
[425399080,1781748640000,-515.31699909,0.00017498,2]
[425399078,1781748640000,-509.60428406,0.00017498,2]
[425399079,1781748640000,-507.28609148,0.00017498,2]
[425399081,1781748640000,-500.0,0.00017498,2]
[425399083,1781748640000,-518.59939962,0.00017498,2]
[425399086,1781748640000,-518.02593755,0.00017498,2]
[425399089,1781748640000,-507.22670863,0.00017498,2]
[425399034,1781748640000,-500.0,0.00017497,2]
[425399084,1781748640000,-507.22634737,0.00017498,2]
[425399087,1781748640000,-514.33722295,0.00017498,2]
[425399085,1781748640000,-517.12538534,0.00017498,2]
[425399090,1781748640000,-508.31959307,0.00017498,2]
[425399091,1781748640000,-527.52504044,0.00017498,2]
[425399092,1781748640000,-508.13668827,0.00017498,2]
[425399093,1781748640000,-509.10677329,0.00017498,2]
[425399094,1781748640000,-507.93955477,0.00017498,2]
[425399095,1781748640000,-505.06353741,0.00017498,2]
[425399096,1781748640000,-508.54278422,0.00017498,2]
[425399067,1781748640000,-559.89178712,0.00017498,2]
[425399070,1781748640000,-518.69066048,0.00017498,2]
[425399088,1781748640000,-503.16826583,0.00017498,2]
[425399065,1781748640000,-500.43990081,0.00017498,2]
[425399064,1781748640000,-211.91626041,0.00017498,2]
[425399035,1781748640000,-624.87178083,0.00017497,2]
[425399038,1781748640000,-500.0,0.00017498,2]
[425399036,1781748640000,-500.0,0.00017497,2]
[425399033,1781748640000,-500.0,0.00017497,2]
[425399037,1781748640000,-500.0,0.00017498,2]
[425399039,1781748640000,-511.87625107,0.00017498,2]
[425399041,1781748640000,-506.00492286,0.00017498,2]
[425399043,1781748640000,-517.2689551,0.00017498,2]
[425399044,1781748640000,-521.34875916,0.00017498,2]
[425399046,1781748640000,-500.66219635,0.00017498,2]
[425399049,1781748640000,-505.44324054,0.00017498,2]
[425399048,1781748640000,-505.97464023,0.00017498,2]
[425399047,1781748640000,-521.44294513,0.00017498,2]
[425399042,1781748640000,-518.45457026,0.00017498,2]
[425399050,1781748640000,-250.90192849,0.00017498,2]
[425399061,1781748640000,-510.48783805,0.00017498,2]
[425399045,1781748640000,-505.52973735,0.00017498,2]
[425399063,1781748640000,-508.90366651,0.00017498,2]
[425399058,1781748640000,-501.33080261,0.00017498,2]
[425399059,1781748640000,-501.91677978,0.00017498,2]
[425399060,1781748640000,-518.17150673,0.00017498,2]
[425399062,1781748640000,-506.248119,0.00017498,2]
[425399056,1781748640000,-505.31965691,0.00017498,2]
[425399054,1781748640000,-502.82382519,0.00017498,2]
[425399052,1781748640000,-509.2202541,0.00017498,2]
[425399051,1781748640000,-507.28249321,0.00017498,2]
[425399055,1781748640000,-506.88698401,0.00017498,2]
[425399053,1781748640000,-500.0,0.00017498,2]
[425399057,1781748640000,-512.16155934,0.00017498,2]
[425399118,1781748641000,-158.22,0.00017808,2]
[425399125,1781748641000,-1281.7553956,0.00018077,2]
[425399122,1781748641000,-510.3495133,0.00018046,2]
[425399123,1781748641000,-664.5459402,0.00018046,2]
[425399126,1781748641000,-500.0,0.00018082,2]
[425399124,1781748641000,-274.262288,0.00018077,2]
[425399127,1781748641000,-167.86899,0.00018082,2]
[425399128,1781748641000,-500.0,0.00018082,2]
[425399135,1781748641000,-171.40784589,0.000184,2]
[425399129,1781748641000,-171.40784589,0.000182,2]
[425399130,1781748641000,-660.505,0.00018285,2]
[425399131,1781748641000,-445.0,0.00018285,2]
[425399133,1781748641000,-500.0,0.00018356,2]
[425399132,1781748641000,-638.6840373,0.0001832,2]
[425399137,1781748641000,-500.0,0.0001863,2]
[425399138,1781748641000,-500.0,0.00018904,2]
[425399120,1781748641000,-171.40784589,0.00018,2]
[425399134,1781748641000,-500.0,0.00018356,2]
[425399119,1781748641000,-372.403816,0.00017922,2]
[425399097,1781748641000,-518.64547066,0.00017498,2]
[425399121,1781748641000,-500.0,0.00018046,2]
[425399098,1781748641000,-510.16248211,0.00017498,2]
[425399100,1781748641000,-507.92066253,0.00017498,2]
[425399101,1781748641000,-504.22172838,0.00017498,2]
[425399099,1781748641000,-496.28477211,0.00017498,2]
[425399102,1781748641000,-508.62705091,0.00017498,2]
[425399103,1781748641000,-504.59501906,0.00017498,2]
[425399109,1781748641000,-500.0,0.00017534,2]
[425399105,1781748641000,-507.03391077,0.00017498,2]
[425399117,1781748641000,-500.0,0.00017808,2]
[425399104,1781748641000,-507.46470194,0.00017498,2]
[425399107,1781748641000,-526.20146334,0.00017498,2]
[425399140,1781748641000,-179.34260109,0.00018907,2]
[425399113,1781748641000,-295.71691797,0.00017772,2]
[425399111,1781748641000,-500.0,0.00017772,2]
[425399114,1781748641000,-342.08724033,0.00017772,2]
[425399112,1781748641000,-608.21318142,0.00017772,2]
[425399115,1781748641000,-500.0,0.00017772,2]
[425399116,1781748641000,-500.0,0.00017808,2]
[425399108,1781748641000,-309.59735176,0.00017498,2]
[425399136,1781748641000,-500.0,0.0001863,2]
[425399106,1781748641000,-376.30031161,0.00017498,2]
[425399141,1781748641000,-160.0,0.00019012,2]
[425399165,1781748641000,-500.0,0.00019999,2]
[425399166,1781748641000,-500.0,0.00019999,2]
[425399169,1781748641000,-500.0,0.00019999,2]
[425399168,1781748641000,-500.0,0.00019999,2]
[425399170,1781748641000,-500.0,0.00019999,2]
[425399172,1781748641000,-500.0,0.00019999,2]
[425399171,1781748641000,-500.0,0.00019999,2]
[425399167,1781748641000,-500.0,0.00019999,2]
[425399164,1781748641000,-500.0,0.00019999,2]
[425399173,1781748641000,-500.0,0.00019999,2]
[425399176,1781748641000,-629.42126147,0.00019999,2]
[425399177,1781748641000,-84287.62303615,0.0002,2]
[425399175,1781748641000,-500.0,0.00019999,2]
[425399178,1781748641000,-1808.66404612,0.0002,2]
[425399179,1781748641000,-152.0,0.00019804,7]
[425399180,1781748641000,-811.3932964,0.0002,2]
[425399181,1781748641000,-5690.11243467,0.0002,2]
[425399139,1781748641000,-500.0,0.00018904,2]
[425399174,1781748641000,-500.0,0.00019999,2]
[425399163,1781748641000,-500.0,0.00019999,2]
[425399110,1781748641000,-500.0,0.00017534,2]
[425399161,1781748641000,-540.81134157,0.0001991,2]
[425399162,1781748641000,-539.636896,0.00019963,2]
[425399146,1781748641000,-500.0,0.00019178,2]
[425399143,1781748641000,-439.596551,0.00019012,2]
[425399144,1781748641000,-500.0,0.00019178,2]
[425399142,1781748641000,-299.798275,0.00019012,2]
[425399147,1781748641000,-152.0,0.00019319,7]
[425399148,1781748641000,-500.0,0.00019452,2]
[425399150,1781748641000,-518.85395589,0.000196,2]
[425399152,1781748641000,-152.0,0.000197,2]
[425399151,1781748641000,-186.395782,0.000196,2]
[425399145,1781748641000,-300.0,0.00019178,2]
[425399149,1781748641000,-500.0,0.00019452,2]
[425399160,1781748641000,-152.0,0.00019798,7]
[425399159,1781748641000,-152.0,0.00019798,7]
[425399158,1781748641000,-500.0,0.00019798,2]
[425399153,1781748641000,-500.0,0.00019726,2]
[425399156,1781748641000,-358.80600714,0.00019793,2]
[425399157,1781748641000,-152.0,0.00019797,2]
[425399154,1781748641000,-500.0,0.00019726,2]
[425399155,1781748641000,-213.51302976,0.00019793,2]
[425399184,1781748643000,-1008.81503167,0.000159,2]
[425399183,1781748643000,-250.90147616,0.00015697,2]
[425399188,1781748646000,-304.0,0.000159,2]
[425401273,1781749841000,-205.696716,0.00017852,2]
[425401269,1781749841000,-160.0,0.00016451,2]
[425401261,1781749841000,-2919.55795891,0.00011271,2]
[425401265,1781749841000,-610.08,0.00016438,2]
[425401233,1781749841000,-1682.03604109,0.00011271,2]
[425401263,1781749841000,-10000.0,0.000115,2]
[425401271,1781749841000,-152.0,0.00016552,2]
[425401219,1781749841000,-398.406,0.00011271,2]
[425401267,1781749841000,-160.0,0.00016451,2]
[425401279,1781749841000,-154.72,0.00018826,2]
[425401275,1781749841000,-961.3165467,0.00017852,2]
[425401277,1781749841000,-165.3960551,0.00018204,2]
[425401296,1781749841000,-345.31790775,0.000198,2]
[425401297,1781749841000,-38958.57001333,0.000198,2]
[425401292,1781749841000,-640.08428774,0.000198,2]
[425401287,1781749841000,-191.84328208,0.000198,2]
[425401294,1781749841000,-275.72584364,0.000198,2]
[425401285,1781749841000,-410.06400816,0.000198,2]
[425401281,1781749841000,-234.35550827,0.00019474,3]
[425401283,1781749841000,-345.90263726,0.000196,2]
[425401290,1781749841000,-3140.79951036,0.000198,2]
[425401288,1781749841000,-244.01489116,0.000198,2]
[425401884,1781749846000,-265.608,0.000198,2]
[425401910,1781749847000,-2437.35501349,0.000198,2]
[425405546,1781751031000,-305.47733971,0.00011835,7]
[425405542,1781751031000,-191.23910787,0.00010716,2]
[425405543,1781751031000,-151.0,0.00010933,2]
[425405545,1781751031000,-305.47733971,0.00011496,7]
[425405544,1781751031000,-305.47733971,0.00011271,7]
[425405549,1781751031000,-392.6547545,0.00015835,2]
[425405548,1781751031000,-305.47733971,0.00012624,7]
[425405550,1781751031000,-916.332558,0.00016438,2]
[425405547,1781751031000,-305.47733971,0.00012173,7]
[425405551,1781751031000,-205.016877,0.00016438,2]
[425405552,1781751031000,-584.49388078,0.00016438,2]
[425405922,1781751038000,-508.01650484,0.00019598,2]
[425405930,1781751038000,-501.40481409,0.00019599,2]
[425405925,1781751038000,-502.07397045,0.00019599,2]
[425405926,1781751038000,-521.10661598,0.00019599,2]
[425405924,1781751038000,-525.78525614,0.00019598,2]
[425405931,1781751038000,-517.58008892,0.00019599,2]
[425405923,1781751038000,-390.75914102,0.00019598,2]
[425405928,1781751038000,-500.0,0.00019599,2]
[425405921,1781751038000,-450.19793064,0.00019598,2]
[425405933,1781751038000,-506.55007254,0.00019599,2]
[425405932,1781751038000,-500.80734247,0.00019599,2]
[425405927,1781751038000,-509.09657709,0.00019599,2]
[425405929,1781751038000,-502.77876947,0.00019599,2]
[425405936,1781751038000,-517.07203982,0.00019599,2]
[425405935,1781751038000,-502.6384833,0.00019599,2]
[425405940,1781751038000,-504.45453172,0.00019599,2]
[425405938,1781751038000,-503.8542886,0.00019599,2]
[425405944,1781751038000,-503.1153839,0.00019599,2]
[425405942,1781751038000,-517.89118144,0.00019599,2]
[425405937,1781751038000,-554.35800745,0.00019599,2]
[425405941,1781751038000,-500.63680074,0.00019599,2]
[425405943,1781751038000,-506.30703421,0.00019599,2]
[425405939,1781751038000,-503.75266131,0.00019599,2]
[425405945,1781751038000,-500.0,0.00019599,2]
[425405958,1781751038000,-505.97453543,0.00019599,2]
[425405947,1781751038000,-518.61139061,0.00019599,2]
[425405934,1781751038000,-500.59398564,0.00019599,2]
[425405915,1781751038000,-500.0,0.00019597,2]
[425405896,1781751038000,-160.0,0.00016461,2]
[425405916,1781751038000,-500.0,0.00019597,2]
[425405892,1781751038000,-6268.66236422,0.00016438,2]
[425405894,1781751038000,-806.8043848,0.00016438,2]
[425405904,1781751038000,-457.8996078,0.00018986,2]
[425405906,1781751038000,-344.99226644,0.00019474,3]
[425405895,1781751038000,-214.0,0.0001644,2]
[425405905,1781751038000,-834.21052,0.00019171,2]
[425405893,1781751038000,-839.335719,0.00016438,2]
[425405957,1781751038000,-505.80555361,0.00019599,2]
[425405897,1781751038000,-160.0,0.00016461,2]
[425405898,1781751038000,-834.21052,0.00017683,2]
[425405899,1781751038000,-258.3273191,0.00017711,2]
[425405902,1781751038000,-834.21052,0.00018427,2]
[425405914,1781751038000,-517.9926797,0.00019597,2]
[425405901,1781751038000,-380.89199417,0.00017959,2]
[425405900,1781751038000,-720.98741,0.00017711,2]
[425405907,1781751038000,-1694.97417356,0.00019499,2]
[425405909,1781751038000,-500.0,0.00019596,2]
[425405910,1781751038000,-502.92634946,0.00019596,2]
[425405918,1781751038000,-623.7380829,0.00019598,2]
[425405913,1781751038000,-153.58719875,0.00019597,2]
[425405917,1781751038000,-406.34441958,0.00019597,2]
[425405920,1781751038000,-500.0,0.00019598,2]
[425405908,1781751038000,-214.0,0.000195,2]
[425405919,1781751038000,-533.01691798,0.00019598,2]
[425405911,1781751038000,-520.48971439,0.00019596,2]
[425405912,1781751038000,-502.75226918,0.00019597,2]
[425405903,1781751038000,-958.0,0.00018536,2]
[425405959,1781751038000,-503.36070267,0.00019599,2]
[425405951,1781751038000,-502.19704683,0.00019599,2]
[425405960,1781751038000,-506.16538194,0.00019599,2]
[425405984,1781751038000,-501.73082216,0.00019599,2]
[425406001,1781751038000,-506.01758946,0.00019599,2]
[425405999,1781751038000,-502.81798302,0.00019599,2]
[425405988,1781751038000,-539.28022472,0.00019599,2]
[425406003,1781751038000,-505.65934034,0.00019599,2]
[425406005,1781751038000,-505.16941055,0.00019599,2]
[425406014,1781751038000,-501.86516398,0.00019599,2]
[425406016,1781751038000,-508.95980262,0.00019599,2]
[425406019,1781751038000,-519.80130054,0.00019599,2]
[425405946,1781751038000,-508.51840183,0.00019599,2]
[425406021,1781751038000,-507.71075151,0.00019599,2]
[425406008,1781751038000,-163.32328254,0.00019599,2]
[425406017,1781751038000,-505.88640696,0.00019599,2]
[425406023,1781751038000,-312.62007451,0.000196,2]
[425406012,1781751038000,-506.64263548,0.00019599,2]
[425406010,1781751038000,-504.02919728,0.00019599,2]
[425406025,1781751038000,-502.23507785,0.00019698,2]
[425406026,1781751038000,-501.08167537,0.00019698,2]
[425406029,1781751038000,-617.75143284,0.00019771,2]
[425406041,1781751038000,-617.75143284,0.00019771,2]
[425406030,1781751038000,-163.79285182,0.00019771,2]
[425406039,1781751038000,-617.75143284,0.00019771,2]
[425406043,1781751038000,-617.75143284,0.00019771,2]
[425406036,1781751038000,-617.75143284,0.00019771,2]
[425406038,1781751038000,-617.75143284,0.00019771,2]
[425406032,1781751038000,-617.75143284,0.00019771,2]
[425406034,1781751038000,-617.75143284,0.00019771,2]
[425405986,1781751038000,-502.42230944,0.00019599,2]
[425405982,1781751038000,-502.96199889,0.00019599,2]
[425406006,1781751038000,-516.83480859,0.00019599,2]
[425405992,1781751038000,-512.84403294,0.00019599,2]
[425405953,1781751038000,-516.60000177,0.00019599,2]
[425405997,1781751038000,-500.0,0.00019599,2]
[425405950,1781751038000,-523.34783739,0.00019599,2]
[425405952,1781751038000,-514.12674073,0.00019599,2]
[425405956,1781751038000,-503.43220127,0.00019599,2]
[425405948,1781751038000,-556.51290688,0.00019599,2]
[425405954,1781751038000,-506.08145619,0.00019599,2]
[425405963,1781751038000,-502.296267,0.00019599,2]
[425405961,1781751038000,-506.90274457,0.00019599,2]
[425405964,1781751038000,-526.58300376,0.00019599,2]
[425405965,1781751038000,-508.10953315,0.00019599,2]
[425405967,1781751038000,-504.47723567,0.00019599,2]
[425405968,1781751038000,-502.82012178,0.00019599,2]
[425405949,1781751038000,-490.13440949,0.00019599,2]
[425405969,1781751038000,-502.83126603,0.00019599,2]
[425405966,1781751038000,-502.0530897,0.00019599,2]
[425405981,1781751038000,-502.18518363,0.00019599,2]
[425405990,1781751038000,-503.47659964,0.00019599,2]
[425405979,1781751038000,-500.56465422,0.00019599,2]
[425405977,1781751038000,-507.92124171,0.00019599,2]
[425405996,1781751038000,-500.0,0.00019599,2]
[425405975,1781751038000,-506.02543279,0.00019599,2]
[425405970,1781751038000,-524.83796547,0.00019599,2]
[425405972,1781751038000,-589.5906409,0.00019599,2]
[425405973,1781751038000,-510.10973055,0.00019599,2]
[425405962,1781751038000,-518.2351963,0.00019599,2]
[425405994,1781751038000,-515.30798056,0.00019599,2]
[425406069,1781751039000,-152.0,0.00019802,7]
[425406071,1781751039000,-152.0,0.00019802,7]
[425406057,1781751039000,-617.75143284,0.00019771,2]
[425406061,1781751039000,-502.84104629,0.00019799,2]
[425406081,1781751039000,-500.0,0.00019873,2]
[425406085,1781751039000,-500.0,0.00019873,2]
[425406087,1781751039000,-214.0,0.0001988,2]
[425406088,1781751039000,-613.89850266,0.00019899,2]
[425406073,1781751039000,-152.0,0.00019815,7]
[425406079,1781751039000,-339.70587412,0.00019872,2]
[425406063,1781751039000,-503.41873257,0.00019799,2]
[425406077,1781751039000,-500.0,0.00019871,2]
[425406075,1781751039000,-485.3368812,0.00019847,3]
[425406065,1781751039000,-508.1248917,0.00019799,2]
[425406059,1781751039000,-500.0,0.00019799,2]
[425406054,1781751039000,-617.75143284,0.00019771,2]
[425406067,1781751039000,-1000.96,0.000198,4]
[425406052,1781751039000,-617.75143284,0.00019771,2]
[425406050,1781751039000,-617.75143284,0.00019771,2]
[425406048,1781751039000,-617.75143284,0.00019771,2]
[425406045,1781751039000,-617.75143284,0.00019771,2]
[425406047,1781751039000,-617.75143284,0.00019771,2]
[425406083,1781751039000,-500.0,0.00019873,2]
[425406056,1781751039000,-617.75143284,0.00019771,2]
[425406090,1781751039000,-274.18848672,0.00019899,2]
[425406100,1781751039000,-958.257194,0.00019899,2]
[425406094,1781751039000,-471.65972936,0.00019899,2]
[425406092,1781751039000,-493.5392761,0.00019899,2]
[425406146,1781751039000,-845.87700273,0.0002,2]
[425406148,1781751039000,-6626.90720223,0.0002,2]
[425406139,1781751039000,-1000.0,0.0002,2]
[425406143,1781751039000,-119756.24094481,0.0002,2]
[425406138,1781751039000,-205.67495732,0.0002,2]
[425406135,1781751039000,-455.83536052,0.0002,2]
[425406141,1781751039000,-162.22340576,0.0002,2]
[425406134,1781751039000,-376.99722662,0.0002,2]
[425406124,1781751039000,-18814.32433985,0.0002,2]
[425406130,1781751039000,-10632.13128247,0.0002,2]
[425406132,1781751039000,-14917.05722499,0.0002,2]
[425406113,1781751039000,-300.0,0.00019999,2]
[425406126,1781751039000,-1999.92132412,0.0002,2]
[425406098,1781751039000,-304.24863361,0.00019899,2]
[425406102,1781751039000,-154.10982379,0.000199,2]
[425406128,1781751039000,-25956.35356575,0.0002,2]
[425406119,1781751039000,-25767.88122063,0.0002,2]
[425406109,1781751039000,-834.21052,0.00019916,2]
[425406096,1781751039000,-848.98751284,0.00019899,2]
[425406117,1781751039000,-2754.60127671,0.0002,2]
[425406104,1781751039000,-154.9077771,0.000199,2]
[425406115,1781751039000,-59518.52414009,0.0002,2]
[425406110,1781751039000,-200.0,0.00019918,2]
[425406122,1781751039000,-10209.98579081,0.0002,2]
[425406508,1781751043000,-414.12432266,0.0002,2]
[425406506,1781751043000,-702.04228195,0.0002,2]
[425406498,1781751043000,-1312.98,0.0002,2]
[425406500,1781751043000,-421.3265632,0.0002,2]
[425406494,1781751043000,-500.0,0.00019596,2]
[425406496,1781751043000,-500.0,0.0001987,2]
[425406504,1781751043000,-645.96788494,0.0002,2]
[425406848,1781751046000,-8101.63098652,0.0002,2]
[425406821,1781751046000,-416.8001,0.0002,2]
[425406854,1781751046000,-72496.13547131,0.0002,2]
[425406846,1781751046000,-10990.25083971,0.0002,2]
[425409938,1781751759000,-18522.105,0.000118,5]
[425410014,1781752079000,2059.5182366,0.00024657,120]
[425410676,1781752243000,-0.01726269,0.000118,5]
[425413948,1781753438000,-500.0,0.00016712,2]
[425413972,1781753438000,-350.97989119,0.00017534,2]
[425413960,1781753438000,-500.0,0.00016986,2]
[425413958,1781753438000,-10544.3610537,0.00016873,2]
[425413955,1781753438000,-500.0,0.00016712,2]
[425413945,1781753438000,-500.0,0.00016438,2]
[425413946,1781753438000,-500.0,0.00016712,2]
[425413952,1781753438000,-150.78917362,0.00016712,2]
[425413950,1781753438000,-220.72,0.00016712,2]
[425413943,1781753438000,-500.0,0.00016438,2]
[425413927,1781753438000,-300.0,0.00013698,2]
[425413939,1781753438000,-540.0627825,0.00016438,2]
[425413935,1781753438000,-500.0,0.00016438,2]
[425413933,1781753438000,-500.0,0.00016438,2]
[425413937,1781753438000,-504.0041902,0.00016438,2]
[425413931,1781753438000,-500.0,0.00016438,2]
[425413929,1781753438000,-501.87640959,0.00016438,2]
[425413921,1781753438000,-36967.03745458,0.000118,5]
[425413957,1781753438000,-233.93375525,0.00016712,2]
[425413923,1781753438000,-4036.38551499,0.000118,5]
[425413925,1781753438000,-500.0,0.00013698,2]
[425413940,1781753438000,-500.0,0.00016438,2]
[425413964,1781753438000,-500.0,0.00016986,2]
[425413982,1781753438000,-72.27557836,0.00018082,2]
[425413962,1781753438000,-526.10043735,0.00016986,2]
[425414010,1781753438000,-9195.73608821,0.00019,2]
[425414012,1781753438000,-5394.42167637,0.00019,2]
[425414004,1781753438000,-509.31554516,0.00018853,2]
[425413994,1781753438000,-745.0,0.00018556,2]
[425413996,1781753438000,-194.203,0.00018556,2]
[425414002,1781753438000,-278.070173,0.00018634,2]
[425414000,1781753438000,-500.0,0.0001863,2]
[425413990,1781753438000,-196.14476328,0.000185,2]
[425413992,1781753438000,-445.0,0.00018556,2]
[425413998,1781753438000,-958.0,0.00018556,2]
[425413988,1781753438000,-196.14476328,0.000184,2]
[425414008,1781753438000,-1001.00882389,0.0001899,2]
[425413986,1781753438000,-500.0,0.00018356,2]
[425413984,1781753438000,-196.14476328,0.000182,2]
[425413980,1781753438000,-427.72442164,0.00018082,2]
[425413976,1781753438000,-158.2,0.00017808,2]
[425413974,1781753438000,-500.0,0.00017808,2]
[425413978,1781753438000,-196.14476328,0.00018,2]
[425413970,1781753438000,-500.0,0.00017534,2]
[425413968,1781753438000,-500.0,0.0001726,2]